bitfinex-derivatives/quotes_BNBF0:USTF0_20241230
["timestamp","ask_amount","ask_price","bid_price","bid_amount"]
[1735522789661,0.28457193,702.81,701.32,0.28517652]
[1735522790064,0.26216998,702.8,701.32,0.28517652]
[1735522790563,0.28458003,702.79,701.32,0.28517652]
[1735522790966,0.2621724,702.78,701.32,0.28517652]
[1735522791162,0.28458003,702.79,701.32,0.28517652]
[1735522791362,0.26218037,702.78,701.32,0.28517652]
[1735522791768,1.32545216,702.78,701.32,0.28517652]
[1735522792061,0.26218037,702.77,701.32,0.28517652]
[1735522792268,0.26218037,702.76,701.32,0.28517652]
[1735522792466,0.26218037,702.75,701.32,0.28517652]
[1735522792866,0.26218037,702.74,701.32,0.28517652]
[1735522793064,0.26218037,702.77,701.32,0.28517652]
[1735522793265,1.06327179,702.56,701.32,0.28517652]
[1735522793665,0.26220317,702.55,701.32,0.28517652]
[1735522794568,0.26220317,702.54,701.32,0.28517652]
[1735522794768,0.26220317,702.53,701.32,0.28517652]
[1735522794964,0.26220317,702.52,701.32,0.28517652]
[1735522795166,0.26220317,702.51,701.32,0.28517652]
[1735522795361,0.26220317,702.5,701.32,0.28517652]
[1735522795568,0.26220317,702.49,701.32,0.28517652]
[1735522795769,0.26220317,702.62,701.32,0.28517652]
[1735522795963,1.06327179,702.63,701.32,0.28517652]
[1735522796169,0.26219846,702.62,701.32,0.28517652]
[1735522796564,0.28465293,702.61,701.32,0.28517652]
[1735522796768,0.26219846,702.6,701.32,0.28517652]
[1735522797163,0.28466103,702.59,701.32,0.28517652]
[1735522797363,0.26219846,702.58,701.32,0.28517652]
[1735522797764,0.28466103,702.59,701.32,0.28517652]
[1735522835195,1.06327179,702.91,701.32,0.28517652]
[1735522835399,0.28453549,702.9,701.32,0.28517652]
[1735522838700,0.26209755,702.89,701.32,0.28517652]
[1735522838903,0.28454359,702.88,701.32,0.28517652]
[1735522839295,0.26209755,702.87,701.32,0.28517652]
[1735522839498,0.28455168,702.86,701.32,0.28517652]
[1735522839802,0.26209755,702.85,701.32,0.28517652]
[1735522840003,0.54666682,702.84,701.32,0.28517652]
[1735522840203,0.54667087,702.83,701.32,0.28517652]
[1735522840503,0.54667492,702.82,701.32,0.28517652]
[1735522840700,0.26210704,702.81,701.32,0.28517652]
[1735522841097,0.28456788,702.82,701.32,0.28517652]
[1735522841700,1.06327179,702.78,701.32,0.28517652]
[1735522843804,1.06327179,702.73,701.32,0.28517652]
[1735522845105,0.28456788,702.82,701.32,0.28517652]
[1735522848114,1.06327179,702.78,701.37,1.05206224]
[1735522849306,1.06327179,702.75,701.34,1.05206224]
[1735522849505,1.06327179,702.75,701.35,0.28516432]
[1735522851710,1.06327179,702.76,701.37,1.05206224]
[1735522852509,1.06327179,702.76,701.38,0.28515212]
[1735522852808,0.28456788,702.82,701.38,0.28515212]
[1735522852809,0.28456788,702.82,701.44,1.05206224]
[1735522853614,0.28456788,702.82,701.43,1.05206224]
[1735522854908,0.28456788,702.82,701.42,1.05206224]
[1735522855713,0.28456788,702.82,701.43,0.2851318]
[1735522856211,1.06327179,702.79,701.43,0.2851318]
[1735522857216,0.28456788,702.82,701.43,0.2851318]
[1735522858313,0.28456788,702.82,701.44,1.05206224]
[1735522858616,0.28456788,702.82,701.45,0.28512367]
[1735522859710,0.26209229,702.81,701.45,0.28512367]
[1735522859915,0.52418548,702.81,701.45,0.28512367]
[1735522860115,1.06327179,702.77,701.45,0.28512367]
[1735522861119,1.06327179,702.76,701.45,0.28512367]
[1735522862021,0.26209229,702.81,701.45,0.28512367]
[1735522866526,0.28456788,702.82,701.45,0.28512367]
[1735522869329,0.26209449,702.81,701.45,0.28512367]
[1735522869531,0.28457598,702.8,701.45,0.28512367]
[1735522869729,0.26209449,702.79,701.45,0.28512367]
[1735522869930,0.28458408,702.78,701.45,0.28512367]
[1735522870429,1.06327179,702.7,701.45,0.28512367]
[1735522872226,1.06327179,702.64,701.45,0.28512367]
[1735522873432,1.06327179,702.59,701.45,0.28512367]
[1735522873628,1.06327179,702.59,701.18,1.05206224]
[1735522873935,0.28466509,702.58,701.18,1.05206224]
[1735522874332,0.28466509,702.58,701.09,1.05206224]
[1735522875631,0.28466509,702.58,701.06,1.05206224]
[1735522875836,0.28466509,702.58,701.07,0.28527821]
[1735522877334,0.26219625,702.57,701.07,0.28527821]
[1735522877738,0.26220387,702.56,701.07,0.28527821]
[1735522877930,0.28467724,702.55,701.07,0.28527821]
[1735522878734,0.26220907,702.54,701.07,0.28527821]
[1735522878943,0.28468535,702.53,701.07,0.28527821]
[1735522879237,0.26220907,702.52,701.07,0.28527821]
[1735522879440,0.28469345,702.51,701.07,0.28527821]
[1735522889643,0.26229223,702.5,701.07,0.28527821]
[1735522889844,0.28470561,702.48,701.07,0.28527821]
[1735522890045,0.26229223,702.47,701.07,0.28527821]
[1735522890544,0.28471777,702.45,701.07,0.28527821]
[1735522890949,0.26236549,702.44,701.07,0.28527821]
[1735522891149,0.28472993,702.42,701.07,0.28527821]
[1735522891351,0.26236549,702.41,701.07,0.28527821]
[1735522891551,0.28474209,702.39,701.07,0.28527821]
[1735522891753,0.26236549,702.38,701.07,0.28527821]
[1735522891952,0.28475425,702.36,701.07,0.28527821]
[1735522892148,0.26236549,702.35,701.07,0.28527821]
[1735522892753,0.28476642,702.33,701.07,0.28527821]
[1735522893248,0.26237187,702.32,701.07,0.28527821]
[1735522893456,0.28477858,702.3,701.07,0.28527821]
[1735522894558,0.26238565,702.29,701.07,0.28527821]
[1735522894855,0.28479074,702.27,701.07,0.28527821]
[1735522896153,0.26240833,702.26,701.07,0.28527821]
[1735522896357,0.28480291,702.24,701.07,0.28527821]
[1735522896557,0.26240833,702.23,701.07,0.28527821]
[1735522896857,0.28481508,702.21,701.07,0.28527821]
[1735522897156,0.26240833,702.2,701.07,0.28527821]
[1735522897350,0.28481508,702.21,701.07,0.28527821]
[1735522897351,0.26240833,702.19,701.07,0.28527821]
[1735522897553,0.2848313,702.17,701.07,0.28527821]
[1735522897959,0.26245845,702.16,701.07,0.28527821]
[1735522898153,0.28484347,702.14,701.07,0.28527821]
[1735522898457,0.26245845,702.13,701.07,0.28527821]
[1735522898652,0.28485564,702.11,701.07,0.28527821]
[1735522898855,0.26245845,702.1,701.07,0.28527821]
[1735522899056,0.28486782,702.08,701.07,0.28527821]
[1735522899256,0.26245845,702.07,701.07,0.28527821]
[1735522899458,0.28487999,702.05,701.07,0.28527821]
[1735522899758,0.26245845,702.04,701.07,0.28527821]
[1735522900056,0.28489216,702.02,701.07,0.28527821]
[1735522900255,0.26246682,702.01,701.07,0.28527821]
[1735522900456,0.28490434,701.99,701.07,0.28527821]
[1735522900757,0.26246682,701.98,701.07,0.28527821]
[1735522900953,0.28491651,701.96,701.07,0.28527821]
[1735522901152,0.26246682,701.95,701.07,0.28527821]
[1735522901357,0.28492869,701.93,701.07,0.28527821]
[1735522901558,0.26246106,701.92,701.07,0.28527821]
[1735522901956,0.28494087,701.9,701.07,0.28527821]
[1735522933176,0.26245589,701.89,701.07,0.28527821]
[1735522933778,0.28494087,701.9,701.07,0.28527821]
[1735522933978,0.26249877,701.88,701.07,0.28527821]
[1735522934173,0.26249877,701.87,701.07,0.28527821]
[1735522934371,0.26249877,701.89,701.07,0.28527821]
[1735522936373,0.26255469,701.88,701.07,0.28527821]
[1735522936779,0.26255469,701.87,701.07,0.28527821]
[1735522936974,0.26255469,701.86,701.07,0.28527821]
[1735522937279,0.26255469,701.85,701.07,0.28527821]
[1735522937474,0.28494087,701.9,701.07,0.28527821]
[1735522937674,0.26257303,701.89,701.07,0.28527821]
[1735522938582,0.26262038,701.88,701.07,0.28527821]
[1735522938776,0.26262038,701.89,701.07,0.28527821]
[1735522938976,0.26262038,701.87,701.07,0.28527821]
[1735522939282,0.26262038,701.86,701.07,0.28527821]
[1735522939484,0.26262038,701.89,701.07,0.28527821]
[1735522939683,0.28494087,701.9,701.07,0.28527821]
[1735522939684,0.26262038,701.88,701.07,0.28527821]
[1735522939882,0.26262038,701.89,701.07,0.28527821]
[1735522940182,0.26262038,701.88,701.07,0.28527821]
[1735522940386,0.26262038,701.89,701.07,0.28527821]
[1735522940579,0.26262038,701.87,701.07,0.28527821]
[1735522940784,0.26262038,701.86,701.07,0.28527821]
[1735522940977,0.26260287,701.89,701.07,0.28527821]
[1735522943485,0.26258665,701.88,701.07,0.28527821]
[1735522943986,0.26258665,701.87,701.07,0.28527821]
[1735522944285,0.26258665,701.89,701.07,0.28527821]
[1735522944486,0.26258665,701.86,701.07,0.28527821]
[1735522944681,0.26258665,701.85,701.07,0.28527821]
[1735522945185,0.26258665,701.89,701.07,0.28527821]
[1735522945388,0.26258665,701.88,701.07,0.28527821]
[1735522945686,0.26258665,701.89,701.07,0.28527821]
[1735522945886,0.26259231,701.88,701.07,0.28527821]
[1735522946087,0.26259231,701.87,701.07,0.28527821]
[1735522946288,0.26259231,701.86,701.07,0.28527821]
[1735522946485,0.28494087,701.9,701.07,0.28527821]
[1735522946486,0.26259231,701.89,701.07,0.28527821]
[1735522946681,0.26259231,701.88,701.07,0.28527821]
[1735522946887,0.26259231,701.89,701.07,0.28527821]
[1735522947188,0.26259231,701.87,701.07,0.28527821]
[1735522947381,0.26259231,701.86,701.07,0.28527821]
[1735522947583,0.26259231,701.89,701.07,0.28527821]
[1735522948383,0.262581,701.88,701.07,0.28527821]
[1735522948587,0.262581,701.89,701.07,0.28527821]
[1735522948887,0.262581,701.88,701.07,0.28527821]
[1735522949088,0.262581,701.87,701.07,0.28527821]
[1735522949289,0.262581,701.89,701.07,0.28527821]
[1735522949584,0.262581,701.88,701.07,0.28527821]
[1735522949790,0.262581,701.89,701.07,0.28527821]
[1735522950086,0.262581,701.88,701.07,0.28527821]
[1735522950289,0.262581,701.87,701.07,0.28527821]
[1735522950490,0.262581,701.86,701.07,0.28527821]
[1735522950690,0.262581,701.89,701.07,0.28527821]
[1735522950889,0.2625631,701.85,701.07,0.28527821]
[1735522951088,0.2625631,701.88,701.07,0.28527821]
[1735522951285,0.2625631,701.87,701.07,0.28527821]
[1735522951688,0.2625631,701.86,701.07,0.28527821]
[1735522952083,0.2625631,701.89,701.07,0.28527821]
[1735522952285,0.2625631,701.88,701.07,0.28527821]
[1735522952691,0.2625631,701.89,701.07,0.28527821]
[1735522952886,0.28494087,701.9,701.07,0.28527821]
[1735522952887,0.2625631,701.87,701.07,0.28527821]
[1735522953087,0.2625631,701.88,701.07,0.28527821]
[1735522953394,0.26253096,701.87,701.07,0.28527821]
[1735522953797,0.26253096,701.86,701.07,0.28527821]
[1735522953987,0.28494087,701.9,701.07,0.28527821]
[1735522953988,0.26253096,701.89,701.07,0.28527821]
[1735522954390,0.26253096,701.85,701.07,0.28527821]
[1735522954693,0.26253096,701.84,701.07,0.28527821]
[1735522954897,0.26253096,701.89,701.07,0.28527821]
[1735522955097,0.26253096,701.88,701.07,0.28527821]
[1735522955296,0.26253096,701.87,701.07,0.28527821]
[1735522955499,0.26253096,701.86,701.07,0.28527821]
[1735522955700,0.26251724,701.85,701.07,0.28527821]
[1735522956102,0.26251724,701.89,701.07,0.28527821]
[1735522956296,0.26251724,701.84,701.07,0.28527821]
[1735522956506,0.26251724,701.83,701.07,0.28527821]
[1735522956802,0.26251724,701.82,701.07,0.28527821]
[1735522957001,0.26251724,701.81,699.58,6.21765974]
[1735522957201,0.26251724,701.89,699.59,3.42104404]
[1735522957400,0.26251724,701.88,699.6,2.7966157]
[1735522957598,0.26251724,701.89,699.61,3.42104404]
[1735522957802,0.26251724,701.88,699.61,3.42104404]
[1735522958002,0.26251724,701.89,699.62,2.7966157]
[1735522958300,0.26252787,701.88,699.63,3.42104404]
[1735522958501,0.26252787,701.89,699.63,3.42104404]
[1735522958701,0.26252787,701.88,699.64,2.7966157]
[1735522958901,0.26252787,701.87,699.65,3.42104404]
[1735522959097,0.26252787,702.15,699.65,3.42104404]
[1735522959303,1.06327179,702.12,699.66,2.7966157]
[1735522959604,0.26252787,702.11,699.67,3.42104404]
[1735522959804,0.26252787,702.1,699.67,3.42104404]
[1735522960005,1.06327179,702.07,699.67,3.42104404]
[1735522960198,0.26252787,702.06,699.68,2.7966157]
[1735522960399,0.26252787,702.05,699.69,3.42104404]
[1735522960597,1.06327179,702.07,699.7,2.7966157]
[1735522960799,0.26253049,702.04,699.71,3.42104404]
[1735522961200,1.06327179,702.05,699.72,2.7966157]
[1735522961404,0.26253049,702.03,699.73,3.42104404]
[1735522961607,0.2625291,702.04,699.73,3.42104404]
[1735522961801,0.2625291,702.02,699.74,2.7966157]
[1735522962109,1.06327179,701.99,699.75,1.79997158]
[1735522962300,0.2625291,701.98,699.75,3.41982687]
[1735522962500,0.2625291,701.98,699.76,1.79997158]
[1735522962705,0.2625291,701.98,699.76,2.7966157]
[1735522962908,1.06327179,701.93,699.77,1.79997158]
[1735522963302,0.26252676,701.92,699.72,3.41985375]
[1735522963502,0.26252676,701.92,699.72,6.21646945]
[1735522963700,0.26252676,701.92,699.73,6.21646945]
[1735522963905,1.06327179,701.83,699.79,1.05206224]
[1735522964107,0.26252676,701.82,699.79,1.05206224]
[1735522964908,1.06327179,701.8,699.85,1.05206224]
[1735522965708,1.06327179,702.19,699.62,1.05206224]
[1735522966108,0.262428,702.18,699.62,1.05206224]
[1735522967010,0.262428,702.18,699.83,1.05206224]
[1735522967210,0.262428,702.19,699.83,1.05206224]
[1735522967412,1.06327179,702.2,699.83,1.05206224]
[1735522967413,0.262428,702.18,699.83,1.05206224]
[1735522967612,0.262428,702.19,699.83,1.05206224]
[1735522967806,0.262428,702.18,699.83,1.05206224]
[1735522968011,0.26242546,702.17,699.83,1.05206224]
[1735522968207,1.06327179,702.03,700.08,1.05206224]
[1735522968408,0.26242546,702.02,700.08,1.05206224]
[1735522969210,0.26242546,702.01,700.08,1.05206224]
[1735522969413,0.26242546,702.04,700.08,1.05206224]
[1735522969614,0.26242546,702.0,700.08,1.05206224]
[1735522969811,0.26242546,701.99,700.08,1.05206224]
[1735522970012,0.26242546,702.04,700.08,1.05206224]
[1735522970213,0.26242546,702.03,700.06,1.05206224]
[1735522970407,0.26242546,702.07,700.06,1.05206224]
[1735522970610,0.26242546,702.06,700.06,1.05206224]
[1735522970809,0.26242546,702.07,700.06,1.05206224]
[1735522971012,0.26242546,702.06,700.06,1.05206224]
[1735522971216,0.26242546,702.06,700.03,1.05206224]
[1735522971414,0.26242546,702.05,700.03,1.05206224]
[1735522971712,1.06327179,702.1,700.03,1.05206224]
[1735522971713,0.26242546,702.04,700.03,1.05206224]
[1735522971913,0.26242546,702.03,700.03,1.05206224]
[1735522972109,0.26242546,702.09,700.03,1.05206224]
[1735522972314,1.06327179,702.05,700.12,1.05206224]
[1735522972510,0.26242546,702.04,700.12,1.05206224]
[1735522972907,1.06327179,702.05,700.12,1.05206224]
[1735522973113,0.26242921,702.04,700.11,1.05206224]
[1735522973411,0.26242921,702.03,700.11,1.05206224]
[1735522973815,0.26242921,702.07,700.11,1.05206224]
[1735522974016,0.26242921,702.02,700.11,1.05206224]
[1735522974315,0.26242921,702.01,700.1,1.05206224]
[1735522974513,0.26242921,702.0,700.1,1.05206224]
[1735522974714,0.26242921,701.99,700.1,1.05206224]
[1735522974915,0.26242921,702.08,700.1,1.05206224]
[1735522975111,0.26242921,702.07,700.1,1.05206224]
[1735522975318,1.06327179,702.03,700.19,1.05206224]
[1735522975610,0.26242239,702.02,700.19,1.05206224]
[1735522976012,0.26242507,702.01,700.19,1.05206224]
[1735522976311,0.26242507,702.0,700.2,1.05206224]
[1735522976516,0.26242507,701.99,700.2,1.05206224]
[1735522976816,0.26242507,701.98,700.2,1.05206224]
[1735522977016,0.26242507,702.03,700.2,1.05206224]
[1735522977212,0.26242507,702.02,700.2,1.05206224]
[1735522977419,0.26242507,702.04,700.2,1.05206224]
[1735522977617,0.26242507,702.03,700.2,1.05206224]
[1735522977918,1.06327179,702.05,700.2,1.05206224]
[1735522978314,1.06327179,702.04,700.23,1.05206224]
[1735522979620,1.06327179,702.3,699.99,1.05206224]
[1735522979822,0.26240433,702.29,699.99,1.05206224]
[1735522980622,1.06327179,702.3,699.99,1.05206224]
[1735522980825,0.26238428,702.28,700.01,1.05206224]
[1735522981324,0.26238428,702.27,699.68,6.20709439]
[1735522981525,0.61801505,702.95,699.69,3.41672692]
[1735522981720,0.61801505,702.95,699.7,2.79036747]
[1735522981925,0.26238428,702.26,699.71,3.41672692]
[1735522982125,0.26238428,702.26,699.72,2.79036747]
[1735522982321,0.28484347,702.14,699.73,3.41672692]
[1735522982524,0.26243406,702.13,699.73,3.41672692]
[1735522982719,0.26243406,702.13,699.74,3.07618791]
[1735522982920,0.26243406,702.13,699.94,1.0537105]
[1735522983725,0.26243406,702.13,700.05,1.0537105]
[1735522984523,0.26243406,702.13,700.04,1.0537105]
[1735522984723,0.26243406,702.12,700.04,1.0537105]
[1735522985022,0.26243406,702.11,700.04,1.0537105]
[1735522985223,0.26243406,702.1,700.04,1.0537105]
[1735522985419,0.26243406,702.09,700.04,1.0537105]
[1735522985621,1.06368236,701.97,700.31,1.0537105]
[1735522985824,0.26243406,701.96,700.31,1.0537105]
[1735522986827,0.26243406,701.96,700.32,1.0537105]
[1735522987028,0.26246146,701.95,700.32,1.0537105]
[1735522987530,0.28492869,701.93,700.32,1.0537105]
[1735522987729,0.26246146,701.92,700.32,1.0537105]
[1735522988029,1.06368236,701.89,700.28,1.0537105]
[1735522988429,0.26246146,701.88,700.28,1.0537105]
[1735522989129,0.26246146,701.88,700.31,1.0537105]
[1735522989330,0.26246146,701.87,700.31,1.0537105]
[1735522989531,0.26247236,701.86,700.31,1.0537105]
[1735522989728,0.26247236,701.85,700.31,1.0537105]
[1735522989930,0.26247236,701.9,700.31,1.0537105]
[1735522990230,0.26247236,701.89,700.25,1.0537105]
[1735522990430,0.28495305,701.87,700.25,1.0537105]
[1735522990731,0.26247236,701.86,700.25,1.0537105]
[1735522991331,0.26247236,701.86,699.87,1.0537105]
[1735522992032,0.28495305,701.87,699.89,1.0537105]
[1735522993231,0.26248942,701.86,700.04,1.0537105]
[1735522993425,0.28495305,701.87,700.04,1.0537105]
[1735522993825,0.26248691,701.86,700.04,1.0537105]
[1735522994029,0.28495305,701.87,700.04,1.0537105]
[1735522994331,0.26248741,701.86,700.06,1.0537105]
[1735522994532,0.28495305,701.87,700.06,1.0537105]
[1735522994933,0.26248806,701.86,700.06,1.0537105]
[1735522995327,0.28495305,701.87,700.06,1.0537105]
[1735522996133,0.28495305,701.87,700.02,1.0537105]
[1735522996931,0.28495305,701.87,700.04,1.0537105]
[1735522998235,0.28495305,701.87,700.05,1.0537105]
[1735522999139,0.28495305,701.87,700.2,1.0537105]
[1735523000632,0.28495305,701.87,700.26,1.0537105]
[1735523002934,0.28495305,701.87,700.19,1.0537105]
[1735523004935,0.28495305,701.87,700.18,1.0537105]
[1735523006338,0.28495305,701.87,700.31,1.0537105]
[1735523007233,0.28495305,701.87,700.82,1.0537105]
[1735523008339,0.28495305,701.87,700.76,1.0537105]
[1735523009442,0.28495305,701.87,700.66,1.0537105]
[1735523010142,0.28495305,701.87,700.55,6.23337127]
[1735523010143,0.28495305,701.87,700.68,1.0537105]
[1735523011341,0.28495305,701.87,700.62,1.0537105]
[1735523011640,0.28495305,701.87,700.62,3.86032617]
[1735523012037,0.28495305,701.87,700.62,1.0537105]
[1735523012234,0.28495305,701.87,700.53,1.0537105]
[1735523013535,0.28495305,701.87,700.42,1.0537105]
[1735523014442,0.28495305,701.87,700.39,6.22889153]
[1735523014640,0.28495305,701.87,700.4,6.22889153]
[1735523014840,0.28495305,701.87,700.41,3.42227586]
[1735523015141,0.28495305,701.87,700.42,2.80661567]
[1735523015338,0.28495305,701.87,700.43,3.42227586]
[1735523015837,0.28495305,701.87,700.44,2.80661567]
[1735523016037,0.28495305,701.87,700.45,3.42227586]
[1735523016443,0.28495305,701.87,700.46,2.80661567]
[1735523016639,0.28495305,701.87,700.47,3.42227586]
[1735523017039,0.28495305,701.87,700.48,2.80661567]
[1735523017243,0.28495305,701.87,700.49,3.42227586]
[1735523017640,0.28495305,701.87,700.5,2.80661567]
[1735523018038,0.28495305,701.87,700.33,1.0537105]
[1735523018642,0.28495305,701.87,700.22,1.0537105]
[1735523019845,0.28495305,701.87,700.27,1.0537105]
[1735523021044,0.28495305,701.87,700.4,1.0537105]
[1735523022147,0.28495305,701.87,700.43,1.0537105]
[1735523023649,0.28495305,701.87,700.31,1.0537105]
[1735523024348,0.28495305,701.87,700.31,2.67737115]
[1735523024549,0.28495305,701.87,700.32,1.79756166]
[1735523024750,0.28495305,701.87,700.32,2.79442776]
[1735523024949,0.28495305,701.87,700.33,3.42683366]
[1735523025148,0.28495305,701.87,700.34,1.62651958]
[1735523025345,0.28495305,701.87,700.34,1.80057197]
[1735523025651,0.28495305,701.87,700.3,2.79442776]
[1735523025846,0.28495305,701.87,700.18,1.0537105]
[1735523027248,0.28495305,701.87,700.09,1.0537105]
[1735523028152,0.28495305,701.87,700.08,6.22295467]
[1735523028351,0.28495305,701.87,700.09,3.42852691]
[1735523028550,0.28495305,701.87,700.1,2.79442776]
[1735523028749,0.28495305,701.87,700.11,3.42852691]
[1735523029045,0.28495305,701.87,700.12,2.79442776]
[1735523029252,0.28495305,701.87,700.13,3.42852691]
[1735523029646,0.28495305,701.87,700.14,2.79442776]
[1735523029850,0.28495305,701.87,700.15,3.42852691]
[1735523030251,0.28495305,701.87,700.16,2.79442776]
[1735523030447,0.28495305,701.87,700.17,3.42852691]
[1735523030751,0.28495305,701.87,700.18,2.79442776]
[1735523030951,0.28495305,701.87,700.19,3.42852691]
[1735523031448,0.28495305,701.87,700.2,2.79442776]
[1735523031655,0.28495305,701.87,700.21,3.42852691]
[1735523031853,0.28495305,701.87,700.21,1.80149609]
[1735523032251,0.28495305,701.87,700.06,3.42778911]
[1735523032651,0.28495305,701.87,700.07,2.79442776]
[1735523032854,0.28495305,701.87,700.08,3.42778911]
[1735523033454,0.28495305,701.87,700.09,2.79442776]
[1735523033655,0.28495305,701.87,700.1,3.42778911]
[1735523034049,0.28495305,701.87,700.11,2.79442776]
[1735523034254,0.28495305,701.87,700.09,1.0537105]
[1735523035056,0.26249051,701.86,700.09,1.0537105]
[1735523035454,0.26249051,701.86,699.84,3.42921511]
[1735523035854,0.26249051,701.86,699.85,2.79442776]
[1735523036052,0.26249051,701.86,699.86,3.42921511]
[1735523036358,0.28496523,701.84,699.87,2.79442776]
[1735523036553,0.28496523,701.84,699.88,3.42921511]
[1735523036753,0.26249051,701.83,699.88,3.42921511]
[1735523036956,0.28497741,701.81,699.89,2.79442776]
[1735523037154,0.26249051,701.8,699.9,3.42921511]
[1735523037353,0.28498959,701.78,699.9,3.42921511]
[1735523037553,0.26255199,701.77,699.9,3.42921511]
[1735523037753,0.26255199,701.77,699.91,2.79442776]
[1735523037958,0.28500178,701.75,699.92,3.42921511]
[1735523038258,0.26255199,701.74,699.93,2.79442776]
[1735523038454,0.28501396,701.72,699.94,3.42921511]
[1735523038656,0.26255199,701.71,699.95,2.79442776]
[1735523038856,0.28502615,701.69,699.96,3.42921511]
[1735523039057,0.26254352,701.68,699.96,3.42921511]
[1735523039360,0.28503833,701.66,699.96,1.80189056]
[1735523039558,0.26254352,701.65,699.77,3.42856946]
[1735523039861,0.28505052,701.63,699.77,3.42856946]
[1735523040052,0.26254352,701.62,699.78,1.80189056]
[1735523040253,0.28506271,701.6,699.74,3.08492073]
[1735523040460,0.26254352,701.59,699.75,3.42856946]
[1735523040856,0.2850749,701.57,699.76,2.79910029]
[1735523041060,0.2850749,701.57,699.77,3.42856946]
[1735523041262,0.26258072,701.56,699.77,3.42856946]
[1735523041458,0.26258072,701.56,699.78,2.79910029]
[1735523041663,0.28508709,701.54,699.79,3.42856946]
[1735523041865,0.28508709,701.54,699.8,2.79910029]
[1735523042061,0.28508709,701.54,699.81,3.42856946]
[1735523042261,0.26257085,701.53,699.82,2.79910029]
[1735523042466,0.28509928,701.51,699.83,3.42856946]
[1735523042862,0.26257085,701.5,699.84,2.79910029]
[1735523043077,0.26257085,701.5,699.85,3.42856946]
[1735523043268,0.26257085,701.5,699.86,2.79910029]
[1735523043471,0.26257085,701.5,699.87,3.42856946]
[1735523043863,0.26257085,701.5,699.88,2.79910029]
[1735523044064,0.26257085,701.5,699.89,3.42856946]
[1735523044271,0.26257085,701.5,699.9,2.79910029]
[1735523044469,0.26257085,701.5,699.91,3.42856946]
[1735523044768,0.26257085,701.5,699.92,2.79910029]
[1735523044965,0.26257085,701.5,699.93,3.42856946]
[1735523045370,0.26259728,701.49,699.94,2.79910029]
[1735523045671,0.28511554,701.47,699.95,3.42856946]
[1735523045866,0.26259728,701.46,699.95,3.42856946]
[1735523046071,0.26259728,701.46,699.96,2.79910029]
[1735523046270,0.26259728,701.46,699.97,3.42856946]
[1735523046474,0.26259728,701.46,699.98,2.79910029]
[1735523046675,0.26259728,701.46,699.99,3.42856946]
[1735523046871,0.28512773,701.44,699.99,3.42856946]
[1735523047073,0.26259728,701.43,700.0,2.79910029]
[1735523047269,0.28513993,701.41,700.01,3.42856946]
[1735523047468,0.26258385,701.4,700.01,3.42856946]
[1735523047670,0.26258385,701.4,700.02,2.79910029]
[1735523047868,0.28513993,701.41,700.03,3.42856946]
[1735523048270,0.28513993,701.41,700.04,2.79910029]
[1735523048575,0.28513993,701.41,700.05,1.80189056]
[1735523048874,0.28513993,701.41,700.04,2.79910029]
[1735523049074,0.28513993,701.41,699.64,1.0537105]
[1735523049870,0.28513993,701.41,699.59,1.0537105]
[1735523050575,0.28513993,701.41,699.54,1.0537105]
[1735523051675,0.28513993,701.41,699.49,6.21978427]
[1735523051877,0.28513993,701.41,699.5,3.42068398]
[1735523052176,0.28513993,701.41,699.5,6.21978427]
[1735523052376,0.28513993,701.41,699.51,3.42068398]
[1735523052779,0.28513993,701.41,699.52,2.79910029]
[1735523053076,0.28513993,701.41,699.53,3.42068398]
[1735523053273,0.26261094,701.4,699.54,2.79910029]
[1735523053472,0.28513993,701.41,699.55,3.42068398]
[1735523053678,0.28515212,701.38,699.56,2.79910029]
[1735523053879,0.28515212,701.38,699.57,3.42068398]
[1735523054179,0.28515212,701.38,699.58,2.79910029]
[1735523054371,0.28515212,701.38,699.59,3.42068398]
[1735523054575,0.28515212,701.38,699.6,2.79910029]
[1735523054774,0.28515212,701.38,699.61,3.42068398]
[1735523054978,0.28515212,701.38,699.62,2.79910029]
[1735523055179,0.28515212,701.38,699.63,3.42068398]
[1735523055680,0.28515212,701.38,699.64,2.79910029]
[1735523055879,0.28515212,701.38,699.65,3.42068398]
[1735523056175,0.28515212,701.38,699.66,2.79910029]
[1735523056382,0.28515212,701.38,699.67,3.42068398]
[1735523056575,0.28515212,701.38,699.68,2.79910029]
[1735523056780,0.28515212,701.38,699.69,3.42068398]
[1735523056980,0.28515212,701.38,699.7,2.79910029]
[1735523057180,0.28515212,701.38,699.71,3.42068398]
[1735523057685,0.28515212,701.38,699.72,2.79910029]
[1735523057982,0.28515212,701.38,699.73,3.42068398]
[1735523058282,0.28515212,701.38,699.74,2.79910029]
[1735523058483,0.28515212,701.38,699.75,3.42068398]
[1735523058683,0.26261311,701.37,699.75,3.42068398]
[1735523058886,0.26261311,701.37,699.76,2.79910029]
[1735523059080,0.26261311,701.37,699.77,3.42068398]
[1735523059486,0.26261311,701.37,699.87,1.0537105]
[1735523060387,0.28516432,701.35,699.87,1.0537105]
[1735523060586,0.26261311,701.34,699.87,1.0537105]
[1735523060779,0.28517652,701.32,699.87,1.0537105]
[1735523060984,0.28517652,701.32,699.84,1.79748516]
[1735523060985,0.26261311,701.31,699.85,4.41792217]
[1735523061185,0.28518872,701.29,699.86,3.41630704]
[1735523061579,0.28518872,701.29,699.87,2.79910029]